[Event "Early-Titled-Tuesday-Blitz-June-18-2024"]
[Site "Chess.com"]
[Date "2024.06.18"]
[Round "11"]
[White "djano"]
[Black "CristhianPortalR"]
[Result "0-1"]
[WhiteElo "2627"]
[BlackElo "2521"]
[TimeControl "180+1"]
[EndTime "10:06:02 PDT"]
[Termination "CristhianPortalR won by resignation"]

1. Nc3 {[%clk 0:03:00.9]} 1... d5 {[%clk 0:02:53.9]} 2. d4 {[%clk 0:02:58.2]}
2... Nf6 {[%clk 0:02:49.4]} 3. Bf4 {[%clk 0:02:56.9]} 3... Bf5 {[%clk
0:02:46.8]} 4. f3 {[%clk 0:02:55.9]} 4... Bg6 {[%clk 0:02:44.2]} 5. g4 {[%clk
0:02:55.3]} 5... e6 {[%clk 0:02:39.2]} 6. h4 {[%clk 0:02:55]} 6... h5 {[%clk
0:02:39.1]} 7. g5 {[%clk 0:02:53.6]} 7... Nfd7 {[%clk 0:02:39.6]} 8. e3 {[%clk
0:02:53.1]} 8... c5 {[%clk 0:02:39.9]} 9. Bd3 {[%clk 0:02:52.7]} 9... Bxd3
{[%clk 0:02:39.4]} 10. Qxd3 {[%clk 0:02:53]} 10... g6 {[%clk 0:02:39.4]} 11.
Nge2 {[%clk 0:02:49.6]} 11... Nc6 {[%clk 0:02:39.5]} 12. a3 {[%clk 0:02:46]}
12... Bg7 {[%clk 0:02:39.5]} 13. dxc5 {[%clk 0:02:35.4]} 13... Nxc5 {[%clk
0:02:40.4]} 14. Qb5 {[%clk 0:02:34.9]} 14... Qe7 {[%clk 0:02:16.6]} 15. Nd4
{[%clk 0:02:31.1]} 15... O-O {[%clk 0:01:43.6]} 16. Nxc6 {[%clk 0:02:29.1]}
16... bxc6 {[%clk 0:01:44.5]} 17. Qxc6 {[%clk 0:02:29.7]} 17... Rac8 {[%clk
0:01:34.1]} 18. Qd6 {[%clk 0:02:28.9]} 18... Qb7 {[%clk 0:01:33.7]} 19. Bh2
{[%clk 0:00:35]} 19... Rfd8 {[%clk 0:01:30.8]} 20. Qg3 {[%clk 0:00:34.5]} 20...
Qxb2 {[%clk 0:01:30.9]} 21. O-O {[%clk 0:00:34.8]} 21... Qxc3 {[%clk 0:01:31.1]}
22. Rab1 {[%clk 0:00:35.1]} 22... Qxe3+ {[%clk 0:01:31.1]} 23. Kh1 {[%clk
0:00:35.5]} 23... Qxa3 {[%clk 0:01:27.4]} 24. Qf4 {[%clk 0:00:34]} 24... Qa4
{[%clk 0:01:23.1]} 25. Rb4 {[%clk 0:00:32.8]} 25... Qxc2 {[%clk 0:01:22.9]} 26.
Bg1 {[%clk 0:00:29.9]} 26... Nd3 {[%clk 0:01:22]} 27. Qxf7+ {[%clk 0:00:27.8]}
27... Kxf7 {[%clk 0:01:21.4]} 0-1

[Event "Early-Titled-Tuesday-Blitz-June-18-2024"]
[Site "Chess.com"]
[Date "2024.06.18"]
[Round "11"]
[White "Goryachkina"]
[Black "Pelusiansky"]
[Result "0-1"]
[WhiteElo "2663"]
[BlackElo "2478"]
[TimeControl "180+1"]
[EndTime "10:06:04 PDT"]
[Termination "Pelusiansky won by resignation"]

1. e4 {[%clk 0:03:00.9]} 1... e5 {[%clk 0:02:55.3]} 2. Nf3 {[%clk 0:03:00.4]}
2... Nf6 {[%clk 0:02:51.1]} 3. Nxe5 {[%clk 0:02:54.3]} 3... d6 {[%clk
0:02:49.8]} 4. Nf3 {[%clk 0:02:54.4]} 4... Nxe4 {[%clk 0:02:49.5]} 5. Nc3 {[%clk
0:02:54.6]} 5... Nf6 {[%clk 0:02:46.9]} 6. d4 {[%clk 0:02:53.3]} 6... Be7 {[%clk
0:02:43.3]} 7. Bg5 {[%clk 0:02:51.8]} 7... O-O {[%clk 0:02:40.8]} 8. Qd2 {[%clk
0:02:51.2]} 8... a5 {[%clk 0:02:30.8]} 9. O-O-O {[%clk 0:02:47]} 9... c6 {[%clk
0:02:24.6]} 10. Bd3 {[%clk 0:02:42]} 10... Na6 {[%clk 0:02:23.1]} 11. h4 {[%clk
0:02:24.9]} 11... Nb4 {[%clk 0:02:11.3]} 12. Kb1 {[%clk 0:02:22.8]} 12... Nxd3
{[%clk 0:02:04.9]} 13. Qxd3 {[%clk 0:02:22.9]} 13... a4 {[%clk 0:02:03.8]} 14.
h5 {[%clk 0:02:10.1]} 14... h6 {[%clk 0:01:49.5]} 15. Bc1 {[%clk 0:02:05.9]}
15... Re8 {[%clk 0:01:42.2]} 16. Nh4 {[%clk 0:01:53.8]} 16... Qa5 {[%clk
0:01:34.1]} 17. f3 {[%clk 0:01:32.7]} 17... b5 {[%clk 0:01:26.2]} 18. Ne4 {[%clk
0:01:10.7]} 18... Be6 {[%clk 0:01:18.7]} 19. Nxf6+ {[%clk 0:00:52.5]} 19... Bxf6
{[%clk 0:01:15.9]} 20. Nf5 {[%clk 0:00:48.6]} 20... b4 {[%clk 0:01:00]} 21. Nxd6
{[%clk 0:00:43.6]} 21... Qd5 {[%clk 0:00:56.1]} 0-1

[Event "Early-Titled-Tuesday-Blitz-June-18-2024"]
[Site "Chess.com"]
[Date "2024.06.18"]
[Round "11"]
[White "marvinguevara"]
[Black "Sofia_Blokhin"]
[Result "1-0"]
[WhiteElo "2156"]
[BlackElo "2288"]
[TimeControl "180+1"]
[EndTime "10:06:08 PDT"]
[Termination "marvinguevara won by checkmate"]

1. e4 {[%clk 0:02:25.4]} 1... c5 {[%clk 0:02:59.1]} 2. Nf3 {[%clk 0:02:24.3]}
2... e6 {[%clk 0:02:59.2]} 3. d4 {[%clk 0:02:22.8]} 3... cxd4 {[%clk 0:02:59.5]}
4. c3 {[%clk 0:02:23.7]} 4... dxc3 {[%clk 0:02:58.6]} 5. Nxc3 {[%clk 0:02:24.6]}
5... Nc6 {[%clk 0:02:58.1]} 6. Bc4 {[%clk 0:02:23.9]} 6... d6 {[%clk 0:02:57.3]}
7. O-O {[%clk 0:02:23.7]} 7... Nf6 {[%clk 0:02:56.9]} 8. Qe2 {[%clk 0:02:24.4]}
8... a6 {[%clk 0:02:54.9]} 9. Rd1 {[%clk 0:02:24.9]} 9... Qc7 {[%clk 0:02:53.7]}
10. Bf4 {[%clk 0:02:22.7]} 10... e5 {[%clk 0:02:53.5]} 11. Bg5 {[%clk
0:02:22.2]} 11... Bg4 {[%clk 0:02:52.2]} 12. Bxf6 {[%clk 0:02:21.8]} 12... gxf6
{[%clk 0:02:50.9]} 13. Nd5 {[%clk 0:02:21.6]} 13... Qd8 {[%clk 0:02:44.7]} 14.
h3 {[%clk 0:02:18]} 14... Be6 {[%clk 0:02:40.6]} 15. Rac1 {[%clk 0:02:14.4]}
15... Bh6 {[%clk 0:02:37.6]} 16. Rc2 {[%clk 0:02:11.9]} 16... Bxd5 {[%clk
0:02:34.6]} 17. Bxd5 {[%clk 0:02:09.7]} 17... Nb4 {[%clk 0:02:31.6]} 18. Rc4
{[%clk 0:02:08.4]} 18... Nxd5 {[%clk 0:02:27.4]} 19. Rxd5 {[%clk 0:02:09.3]}
19... Qe7 {[%clk 0:02:23.6]} 20. Nh4 {[%clk 0:02:09.3]} 20... Bf8 {[%clk
0:02:12.6]} 21. Nf5 {[%clk 0:02:08.1]} 21... Qd7 {[%clk 0:02:09.7]} 22. Qd2
{[%clk 0:02:02]} 22... Rd8 {[%clk 0:02:03.3]} 23. Qc2 {[%clk 0:01:52.2]} 23...
Rg8 {[%clk 0:01:50.5]} 24. Rc7 {[%clk 0:01:51]} 24... Qe6 {[%clk 0:01:48.7]} 25.
Rxb7 {[%clk 0:01:49.1]} 25... Rc8 {[%clk 0:01:40.1]} 26. Qa4+ {[%clk 0:01:46.4]}
26... Kd8 {[%clk 0:01:37.8]} 27. Qxa6 {[%clk 0:01:26.3]} 27... Rg5 {[%clk
0:01:33.4]} 28. Nxd6 {[%clk 0:01:08.5]} 28... Rc1+ {[%clk 0:01:29.3]} 29. Kh2
{[%clk 0:01:07.8]} 29... Qxh3+ {[%clk 0:01:00.5]} 30. gxh3 {[%clk 0:01:04.2]}
30... Rcg1 {[%clk 0:00:57.4]} 31. Nxf7+ {[%clk 0:01:01.3]} 31... Ke8 {[%clk
0:00:55.9]} 32. Qe6+ {[%clk 0:01:00.4]} 32... Be7 {[%clk 0:00:54.6]} 33. Rd8#
{[%clk 0:01:00.5]} 1-0

[Event "Early-Titled-Tuesday-Blitz-June-18-2024"]
[Site "Chess.com"]
[Date "2024.06.18"]
[Round "11"]
[White "pfalcon1949"]
[Black "UnTucopalaTimba"]
[Result "0-1"]
[WhiteElo "1797"]
[BlackElo "2100"]
[TimeControl "180+1"]
[EndTime "10:06:17 PDT"]
[Termination "UnTucopalaTimba won by resignation"]

1. e4 {[%clk 0:03:00.9]} 1... c6 {[%clk 0:02:59.6]} 2. d4 {[%clk 0:02:59.8]}
2... d5 {[%clk 0:02:58.3]} 3. e5 {[%clk 0:03:00.3]} 3... Bf5 {[%clk 0:02:58.1]}
4. h4 {[%clk 0:03:00]} 4... h5 {[%clk 0:02:57.7]} 5. Bg5 {[%clk 0:02:59.9]} 5...
Qb6 {[%clk 0:02:56.9]} 6. Bd3 {[%clk 0:02:57]} 6... Qxd4 {[%clk 0:02:53.9]} 7.
Bxf5 {[%clk 0:02:54.1]} 7... Qxe5+ {[%clk 0:02:53.6]} 8. Ne2 {[%clk 0:02:42]}
8... Qxf5 {[%clk 0:02:52.6]} 9. Nbc3 {[%clk 0:02:40.7]} 9... f6 {[%clk 0:02:50]}
10. Be3 {[%clk 0:02:31.6]} 10... e5 {[%clk 0:02:44.4]} 11. Nxd5 {[%clk
0:02:23.6]} 11... cxd5 {[%clk 0:02:40.6]} 12. Qxd5 {[%clk 0:02:24.5]} 12... Qd7
{[%clk 0:02:38.7]} 13. Qf3 {[%clk 0:02:18.8]} 13... Nc6 {[%clk 0:02:33.4]} 14.
O-O {[%clk 0:02:15.5]} 14... Qg4 {[%clk 0:02:27.1]} 15. Qd5 {[%clk 0:02:10.8]}
15... Rd8 {[%clk 0:02:25.2]} 16. Qb5 {[%clk 0:02:05.8]} 16... Qc8 {[%clk
0:02:21.3]} 17. f4 {[%clk 0:02:02.4]} 17... a6 {[%clk 0:02:14.1]} 18. Qa4 {[%clk
0:01:55.1]} 18... Qg4 {[%clk 0:02:06.4]} 19. Rae1 {[%clk 0:01:46.7]} 19... Bd6
{[%clk 0:01:57.6]} 20. Qb3 {[%clk 0:01:45.1]} 20... b5 {[%clk 0:01:51.9]} 21.
fxe5 {[%clk 0:01:44.3]} 21... Nxe5 {[%clk 0:01:47.2]} 22. Rf4 {[%clk 0:01:34.9]}
22... Qd7 {[%clk 0:01:44]} 23. Nd4 {[%clk 0:01:32.1]} 23... Nh6 {[%clk 0:01:30]}
24. Ne6 {[%clk 0:01:11.1]} 24... Rc8 {[%clk 0:01:27.9]} 25. Rd4 {[%clk
0:00:59.6]} 25... Nhg4 {[%clk 0:01:18.5]} 26. Bf4 {[%clk 0:00:55.2]} 26... Rc4
{[%clk 0:01:10.9]} 27. Rxc4 {[%clk 0:00:46.5]} 27... bxc4 {[%clk 0:01:09.9]} 28.
Qxc4 {[%clk 0:00:47.4]} 28... Nxc4 {[%clk 0:01:08]} 29. Nxg7+ {[%clk 0:00:45.6]}
29... Kf7 {[%clk 0:01:05.6]} 30. Bxd6 {[%clk 0:00:41.7]} 30... Nxd6 {[%clk
0:01:04]} 0-1

[Event "Early-Titled-Tuesday-Blitz-June-18-2024"]
[Site "Chess.com"]
[Date "2024.06.18"]
[Round "11"]
[White "HATilay"]
[Black "BardArtem"]
[Result "0-1"]
[WhiteElo "2657"]
[BlackElo "2854"]
[TimeControl "180+1"]
[EndTime "10:06:23 PDT"]
[Termination "BardArtem won on time"]

1. e4 {[%clk 0:03:00.9]} 1... e5 {[%clk 0:02:59.7]} 2. Nf3 {[%clk 0:03:01]} 2...
Nc6 {[%clk 0:03:00.3]} 3. Bb5 {[%clk 0:03:01.4]} 3... Nge7 {[%clk 0:03:00.8]} 4.
c3 {[%clk 0:02:58]} 4... d5 {[%clk 0:03:00.8]} 5. d3 {[%clk 0:02:42.3]} 5...
dxe4 {[%clk 0:03:00]} 6. dxe4 {[%clk 0:02:42.8]} 6... Qxd1+ {[%clk 0:03:00.9]}
7. Kxd1 {[%clk 0:02:43.3]} 7... f6 {[%clk 0:03:00.4]} 8. Be3 {[%clk 0:02:41.7]}
8... Bd7 {[%clk 0:02:59]} 9. Nbd2 {[%clk 0:02:40.7]} 9... O-O-O {[%clk
0:02:58.6]} 10. a4 {[%clk 0:02:38.5]} 10... a6 {[%clk 0:02:58.7]} 11. Bc4 {[%clk
0:02:34.5]} 11... a5 {[%clk 0:02:52]} 12. Bb5 {[%clk 0:02:30.1]} 12... Be6
{[%clk 0:02:47]} 13. Kc2 {[%clk 0:02:29.8]} 13... g5 {[%clk 0:02:44.8]} 14. h3
{[%clk 0:02:27.4]} 14... h5 {[%clk 0:02:44.8]} 15. Bc4 {[%clk 0:02:19.1]} 15...
Bxc4 {[%clk 0:02:39.4]} 16. Nxc4 {[%clk 0:02:19.3]} 16... Ng6 {[%clk 0:02:37.8]}
17. Rab1 {[%clk 0:01:49.7]} 17... Rh7 {[%clk 0:02:28.6]} 18. b3 {[%clk
0:01:22.9]} 18... Rhd7 {[%clk 0:02:25.9]} 19. Rbd1 {[%clk 0:01:05.6]} 19... b6
{[%clk 0:02:23]} 20. Rxd7 {[%clk 0:01:04.5]} 20... Rxd7 {[%clk 0:02:23.9]} 21.
h4 {[%clk 0:00:49]} 21... g4 {[%clk 0:02:18.1]} 22. Ng1 {[%clk 0:00:49.3]} 22...
Nge7 {[%clk 0:02:08.3]} 23. Ne2 {[%clk 0:00:49.2]} 23... f5 {[%clk 0:02:08.7]}
24. exf5 {[%clk 0:00:47.9]} 24... Nxf5 {[%clk 0:02:09.6]} 25. Bxb6 {[%clk
0:00:35.7]} 25... cxb6 {[%clk 0:02:03.8]} 26. Nxb6+ {[%clk 0:00:36.4]} 26... Kc7
{[%clk 0:02:04.6]} 27. Nxd7 {[%clk 0:00:37.1]} 27... Kxd7 {[%clk 0:02:05.5]} 28.
Rd1+ {[%clk 0:00:37.2]} 28... Ke6 {[%clk 0:02:05.3]} 29. Nc1 {[%clk 0:00:22.3]}
29... g3 {[%clk 0:01:51.5]} 30. Rf1 {[%clk 0:00:06.1]} 30... Bc5 {[%clk
0:01:46.5]} 31. Nd3 {[%clk 0:00:06.5]} 31... Bxf2 {[%clk 0:01:42.9]} 32. Kd2
{[%clk 0:00:03.8]} 32... e4 {[%clk 0:01:40.4]} 0-1

[Event "Early-Titled-Tuesday-Blitz-June-18-2024"]
[Site "Chess.com"]
[Date "2024.06.18"]
[Round "11"]
[White "LangesNasenhaar"]
[Black "glucolisis04"]
[Result "1-0"]
[WhiteElo "2461"]
[BlackElo "2272"]
[TimeControl "180+1"]
[EndTime "10:06:24 PDT"]
[Termination "LangesNasenhaar won by resignation"]

1. Nf3 {[%clk 0:02:57.7]} 1... d5 {[%clk 0:02:58.8]} 2. e3 {[%clk 0:02:57.9]}
2... Nf6 {[%clk 0:02:59.2]} 3. c4 {[%clk 0:02:58.4]} 3... c6 {[%clk 0:02:56.8]}
4. b3 {[%clk 0:02:56.2]} 4... Bf5 {[%clk 0:02:54]} 5. Nc3 {[%clk 0:02:54.6]}
5... e6 {[%clk 0:02:54.4]} 6. d4 {[%clk 0:02:54.1]} 6... Bb4 {[%clk 0:02:52.3]}
7. Bb2 {[%clk 0:02:52.9]} 7... Ne4 {[%clk 0:02:51.6]} 8. Rc1 {[%clk 0:02:19.9]}
8... Qa5 {[%clk 0:02:44.3]} 9. a3 {[%clk 0:02:14]} 9... Nxc3 {[%clk 0:01:52]}
10. axb4 {[%clk 0:02:12.1]} 10... Nxd1 {[%clk 0:01:52.1]} 11. bxa5 {[%clk
0:02:12.1]} 11... Nxb2 {[%clk 0:01:49.2]} 12. Rc3 {[%clk 0:02:08.8]} 12... dxc4
{[%clk 0:01:44]} 13. bxc4 {[%clk 0:02:08.5]} 13... Na6 {[%clk 0:00:52.3]} 14.
Nh4 {[%clk 0:02:02.3]} 14... Ke7 {[%clk 0:00:28.9]} 15. Nxf5+ {[%clk 0:01:59]}
15... exf5 {[%clk 0:00:29.8]} 16. Rb3 {[%clk 0:01:59.5]} 16... Na4 {[%clk
0:00:29.2]} 17. Rxb7+ {[%clk 0:01:57.7]} 17... Kf6 {[%clk 0:00:27.4]} 18. c5
{[%clk 0:01:58.1]} 18... Rhb8 {[%clk 0:00:23.3]} 19. Bxa6 {[%clk 0:01:52]} 19...
Rxb7 {[%clk 0:00:21.8]} 20. Bxb7 {[%clk 0:01:52.2]} 20... Rb8 {[%clk 0:00:21.8]}
21. a6 {[%clk 0:01:52.6]} 21... Nb2 {[%clk 0:00:11]} 22. O-O {[%clk 0:01:48.6]}
22... Nc4 {[%clk 0:00:10.4]} 23. Bxc6 {[%clk 0:01:47]} 23... Na5 {[%clk
0:00:08.4]} 24. Bf3 {[%clk 0:01:42]} 24... Ke6 {[%clk 0:00:04]} 25. d5+ {[%clk
0:01:37]} 25... Ke5 {[%clk 0:00:03.4]} 26. h3 {[%clk 0:01:36.9]} 26... g5 {[%clk
0:00:02.6]} 27. c6 {[%clk 0:01:32.1]} 27... Rb6 {[%clk 0:00:01.4]} 28. c7 {[%clk
0:01:31]} 28... Rxa6 {[%clk 0:00:01.5]} 1-0

[Event "Early-Titled-Tuesday-Blitz-June-18-2024"]
[Site "Chess.com"]
[Date "2024.06.18"]
[Round "11"]
[White "falzehope0"]
[Black "bazar-wokzal"]
[Result "0-1"]
[WhiteElo "2447"]
[BlackElo "2588"]
[TimeControl "180+1"]
[EndTime "10:06:31 PDT"]
[Termination "bazar-wokzal won by resignation"]

1. d4 {[%clk 0:03:00.9]} 1... Nf6 {[%clk 0:02:58.9]} 2. e3 {[%clk 0:03:01.8]}
2... g6 {[%clk 0:02:55.7]} 3. Bd3 {[%clk 0:03:02]} 3... Bg7 {[%clk 0:02:55.7]}
4. f4 {[%clk 0:03:02.5]} 4... O-O {[%clk 0:02:55.4]} 5. Nf3 {[%clk 0:03:03.1]}
5... d6 {[%clk 0:02:55.9]} 6. O-O {[%clk 0:03:03.3]} 6... Nc6 {[%clk 0:02:55.6]}
7. e4 {[%clk 0:03:02.7]} 7... e5 {[%clk 0:02:55.2]} 8. d5 {[%clk 0:03:02.3]}
8... Nb4 {[%clk 0:02:51.8]} 9. fxe5 {[%clk 0:02:56.5]} 9... dxe5 {[%clk
0:02:48.6]} 10. Be3 {[%clk 0:02:54.5]} 10... Ng4 {[%clk 0:02:40.9]} 11. Bc5
{[%clk 0:02:53.6]} 11... Nxd3 {[%clk 0:02:41]} 12. Qxd3 {[%clk 0:02:40.5]} 12...
Re8 {[%clk 0:02:36.8]} 13. Nbd2 {[%clk 0:02:37.9]} 13... b6 {[%clk 0:02:36.6]}
14. Ba3 {[%clk 0:02:36.4]} 14... a5 {[%clk 0:02:36.6]} 15. c4 {[%clk 0:02:35.7]}
15... c6 {[%clk 0:02:25.2]} 16. Rfc1 {[%clk 0:02:08.4]} 16... cxd5 {[%clk
0:02:23]} 17. cxd5 {[%clk 0:02:07.3]} 17... Ba6 {[%clk 0:02:21.4]} 18. Qb3
{[%clk 0:02:01.6]} 18... Bh6 {[%clk 0:02:18.4]} 19. Rc3 {[%clk 0:01:52.5]} 19...
b5 {[%clk 0:01:55.7]} 20. Bc5 {[%clk 0:01:44.5]} 20... b4 {[%clk 0:01:50]} 21.
Rc2 {[%clk 0:01:39]} 21... Rc8 {[%clk 0:01:49.3]} 22. Bf2 {[%clk 0:01:32.4]}
22... Nxf2 {[%clk 0:01:44.8]} 23. Kxf2 {[%clk 0:01:33.3]} 23... Qb6+ {[%clk
0:01:43.4]} 24. Ke1 {[%clk 0:00:59.7]} 24... a4 {[%clk 0:01:34.2]} 25. Qxa4
{[%clk 0:00:57.4]} 25... Qe3+ {[%clk 0:01:15.8]} 26. Kd1 {[%clk 0:00:53.8]}
26... Qe2+ {[%clk 0:01:02.6]} 27. Kc1 {[%clk 0:00:52.5]} 27... Rxc2+ {[%clk
0:01:01]} 28. Kxc2 {[%clk 0:00:41.1]} 28... Rc8+ {[%clk 0:01:00.4]} 29. Kb1
{[%clk 0:00:34.2]} 29... Bd3+ {[%clk 0:00:55]} 0-1

[Event "Early-Titled-Tuesday-Blitz-June-18-2024"]
[Site "Chess.com"]
[Date "2024.06.18"]
[Round "11"]
[White "NailBashirli"]
[Black "Zohid6"]
[Result "0-1"]
[WhiteElo "2751"]
[BlackElo "2966"]
[TimeControl "180+1"]
[EndTime "10:06:32 PDT"]
[Termination "Zohid6 won on time"]

1. e4 {[%clk 0:03:00.9]} 1... e6 {[%clk 0:02:59.1]} 2. d4 {[%clk 0:02:59.9]}
2... d5 {[%clk 0:02:58]} 3. Nd2 {[%clk 0:03:00.3]} 3... h6 {[%clk 0:02:56.6]} 4.
Bd3 {[%clk 0:02:59.1]} 4... Nf6 {[%clk 0:02:56.2]} 5. e5 {[%clk 0:02:58.5]} 5...
Nfd7 {[%clk 0:02:55.7]} 6. c3 {[%clk 0:02:58]} 6... c5 {[%clk 0:02:56]} 7. Ne2
{[%clk 0:02:57.6]} 7... Nc6 {[%clk 0:02:56.3]} 8. O-O {[%clk 0:02:57.3]} 8...
Qb6 {[%clk 0:02:56]} 9. dxc5 {[%clk 0:02:50]} 9... Nxc5 {[%clk 0:02:51.7]} 10.
Bc2 {[%clk 0:02:49.8]} 10... Nxe5 {[%clk 0:02:49.3]} 11. Nd4 {[%clk 0:02:46.9]}
11... Nc6 {[%clk 0:02:48.6]} 12. N2f3 {[%clk 0:02:45.2]} 12... Bd7 {[%clk
0:02:48.2]} 13. Re1 {[%clk 0:02:45.1]} 13... Be7 {[%clk 0:02:47.5]} 14. b4
{[%clk 0:02:37.6]} 14... Nxd4 {[%clk 0:02:43.9]} 15. Nxd4 {[%clk 0:02:22.1]}
15... Ne4 {[%clk 0:02:43.1]} 16. Bxe4 {[%clk 0:02:21.9]} 16... dxe4 {[%clk
0:02:44]} 17. Rxe4 {[%clk 0:02:21.8]} 17... Rc8 {[%clk 0:02:44]} 18. Re3 {[%clk
0:02:15.9]} 18... Bb5 {[%clk 0:02:30.9]} 19. Qh5 {[%clk 0:02:07.7]} 19... Bc4
{[%clk 0:02:26.4]} 20. Rg3 {[%clk 0:02:02.2]} 20... Bf6 {[%clk 0:02:23.4]} 21.
Be3 {[%clk 0:02:01.4]} 21... Qd8 {[%clk 0:02:17.7]} 22. Re1 {[%clk 0:01:23]}
22... Qd5 {[%clk 0:02:12]} 23. Qg4 {[%clk 0:01:17.7]} 23... Bxa2 {[%clk
0:02:02.3]} 24. Bf4 {[%clk 0:00:54.7]} 24... h5 {[%clk 0:01:49.3]} 25. Qd1
{[%clk 0:00:52.7]} 25... h4 {[%clk 0:01:48]} 26. Rf3 {[%clk 0:00:40.2]} 26...
O-O {[%clk 0:01:43.5]} 27. Be3 {[%clk 0:00:19.5]} 27... Rfd8 {[%clk 0:01:40.7]}
28. Qa1 {[%clk 0:00:15.7]} 28... Bc4 {[%clk 0:01:40.5]} 29. h3 {[%clk
0:00:15.7]} 29... e5 {[%clk 0:01:40.5]} 30. Nf5 {[%clk 0:00:14.6]} 30... Bd3
{[%clk 0:01:40.9]} 31. Rd1 {[%clk 0:00:08.9]} 31... Qe6 {[%clk 0:01:39.9]} 32.
g4 {[%clk 0:00:02.2]} 32... Be2 {[%clk 0:01:36.2]} 33. Rxd8+ {[%clk 0:00:01.9]}
33... Rxd8 {[%clk 0:01:37.1]} 0-1

[Event "Early-Titled-Tuesday-Blitz-June-18-2024"]
[Site "Chess.com"]
[Date "2024.06.18"]
[Round "11"]
[White "gpsji27"]
[Black "MaxLeto"]
[Result "1-0"]
[WhiteElo "2348"]
[BlackElo "2431"]
[TimeControl "180+1"]
[EndTime "10:06:35 PDT"]
[Termination "gpsji27 won by checkmate"]

1. d4 {[%clk 0:03:00.9]} 1... h5 {[%clk 0:02:41.4]} 2. e4 {[%clk 0:02:56.6]}
2... h4 {[%clk 0:02:42.3]} 3. h3 {[%clk 0:02:56.3]} 3... d6 {[%clk 0:02:42.6]}
4. Nc3 {[%clk 0:02:55.9]} 4... e5 {[%clk 0:02:43.2]} 5. Nf3 {[%clk 0:02:47.4]}
5... Nc6 {[%clk 0:02:40.2]} 6. Bb5 {[%clk 0:02:46.6]} 6... exd4 {[%clk
0:02:35.1]} 7. Nxd4 {[%clk 0:02:46]} 7... Bd7 {[%clk 0:02:33.1]} 8. O-O {[%clk
0:02:41.8]} 8... Nf6 {[%clk 0:02:22.6]} 9. Bxc6 {[%clk 0:02:37.3]} 9... bxc6
{[%clk 0:02:21.3]} 10. e5 {[%clk 0:02:36.2]} 10... dxe5 {[%clk 0:02:20.5]} 11.
Re1 {[%clk 0:02:36.2]} 11... Bd6 {[%clk 0:02:20.7]} 12. f4 {[%clk 0:02:31]}
12... Rh5 {[%clk 0:02:09.2]} 13. Nf3 {[%clk 0:02:24.1]} 13... e4 {[%clk
0:01:22.9]} 14. Nxe4 {[%clk 0:02:22.3]} 14... Nxe4 {[%clk 0:01:23.8]} 15. Rxe4+
{[%clk 0:02:21.2]} 15... Kf8 {[%clk 0:01:24.5]} 16. Ne5 {[%clk 0:01:57.7]} 16...
Bf5 {[%clk 0:01:13.4]} 17. Qxh5 {[%clk 0:01:54.2]} 17... Bxe5 {[%clk 0:00:26.5]}
18. Qh8+ {[%clk 0:01:50.5]} 18... Ke7 {[%clk 0:00:26.4]} 19. Rxe5+ {[%clk
0:01:51.1]} 19... Be6 {[%clk 0:00:17]} 20. Qxh4+ {[%clk 0:01:50.1]} 20... Kd7
{[%clk 0:00:08.4]} 21. Qxd8+ {[%clk 0:01:48.9]} 21... Rxd8 {[%clk 0:00:07]} 22.
Be3 {[%clk 0:01:49.8]} 22... a6 {[%clk 0:00:05.2]} 23. Rd1+ {[%clk 0:01:50.3]}
23... Kc8 {[%clk 0:00:05.3]} 24. Rxd8+ {[%clk 0:01:51.2]} 24... Kxd8 {[%clk
0:00:06]} 25. f5 {[%clk 0:01:51.9]} 25... Bxa2 {[%clk 0:00:05.8]} 26. b3 {[%clk
0:01:52.2]} 26... Bb1 {[%clk 0:00:05.8]} 27. Rc5 {[%clk 0:01:52.4]} 27... Kd7
{[%clk 0:00:05.6]} 28. Kf2 {[%clk 0:01:52.8]} 28... f6 {[%clk 0:00:05.6]} 29.
Ke2 {[%clk 0:01:52.8]} 29... Kd6 {[%clk 0:00:05.9]} 30. Kd2 {[%clk 0:01:52.6]}
30... a5 {[%clk 0:00:03.5]} 31. Kc1 {[%clk 0:01:52]} 31... Ba2 {[%clk
0:00:02.2]} 32. Kb2 {[%clk 0:01:52.7]} 32... a4 {[%clk 0:00:02.5]} 33. Kxa2
{[%clk 0:01:53.1]} 33... a3 {[%clk 0:00:03.2]} 34. Kxa3 {[%clk 0:01:53.4]} 34...
g5 {[%clk 0:00:03.4]} 35. b4 {[%clk 0:01:53.9]} 35... g4 {[%clk 0:00:03.7]} 36.
Bf4+ {[%clk 0:01:54]} 36... Kd7 {[%clk 0:00:03.5]} 37. h4 {[%clk 0:01:54.4]}
37... g3 {[%clk 0:00:03.7]} 38. h5 {[%clk 0:01:55.1]} 38... Ke7 {[%clk
0:00:03.2]} 39. h6 {[%clk 0:01:55.6]} 39... Kf7 {[%clk 0:00:04.1]} 40. Rxc6
{[%clk 0:01:56.3]} 40... Kg8 {[%clk 0:00:04.5]} 41. Rxc7 {[%clk 0:01:56.6]}
41... Kh8 {[%clk 0:00:05]} 42. b5 {[%clk 0:01:53.4]} 42... Kg8 {[%clk
0:00:04.2]} 43. b6 {[%clk 0:01:54.1]} 43... Kf8 {[%clk 0:00:04.5]} 44. b7 {[%clk
0:01:55]} 44... Ke8 {[%clk 0:00:04.5]} 45. b8=Q# {[%clk 0:01:55.9]} 1-0

[Event "Early-Titled-Tuesday-Blitz-June-18-2024"]
[Site "Chess.com"]
[Date "2024.06.18"]
[Round "11"]
[White "Dewarfd"]
[Black "Nasrin_Babayeva"]
[Result "1-0"]
[WhiteElo "2138"]
[BlackElo "1989"]
[TimeControl "180+1"]
[EndTime "10:06:35 PDT"]
[Termination "Dewarfd won by resignation"]

1. Nf3 {[%clk 0:03:00.9]} 1... d5 {[%clk 0:02:50]} 2. c4 {[%clk 0:03:00.4]} 2...
dxc4 {[%clk 0:02:48]} 3. Na3 {[%clk 0:02:57.1]} 3... Be6 {[%clk 0:02:41.1]} 4.
Qc2 {[%clk 0:02:51.4]} 4... Qd5 {[%clk 0:02:23.5]} 5. g3 {[%clk 0:02:49.1]} 5...
b5 {[%clk 0:02:16]} 6. Bg2 {[%clk 0:02:44.6]} 6... c6 {[%clk 0:02:15.4]} 7. O-O
{[%clk 0:02:36.4]} 7... Bf5 {[%clk 0:01:33.5]} 8. Qc3 {[%clk 0:02:24.4]} 8... e6
{[%clk 0:01:28.2]} 9. Nd4 {[%clk 0:02:17.3]} 9... Be4 {[%clk 0:01:24.3]} 10. f3
{[%clk 0:02:07.2]} 10... Bc5 {[%clk 0:01:19.3]} 11. e3 {[%clk 0:02:02.5]} 11...
b4 {[%clk 0:01:11.2]} 12. fxe4 {[%clk 0:01:54.8]} 12... Qg5 {[%clk 0:00:46.1]}
13. Nf3 {[%clk 0:01:45.8]} 13... Qxe3+ {[%clk 0:00:33.6]} 14. Qxe3 {[%clk
0:00:59.7]} 14... Bxe3+ {[%clk 0:00:28.5]} 15. dxe3 {[%clk 0:01:00.6]} 15...
bxa3 {[%clk 0:00:27.7]} 16. bxa3 {[%clk 0:01:00.5]} 16... Nf6 {[%clk 0:00:24.3]}
17. Ne5 {[%clk 0:00:55]} 17... O-O {[%clk 0:00:20.5]} 18. Nxc4 {[%clk
0:00:54.7]} 18... Nbd7 {[%clk 0:00:20.4]} 19. Bb2 {[%clk 0:00:54.3]} 19... Rab8
{[%clk 0:00:19.9]} 20. Bc3 {[%clk 0:00:50.2]} 20... Rfd8 {[%clk 0:00:14.4]} 21.
Rab1 {[%clk 0:00:48.3]} 1-0